fUSD/lending_fUSD_20240329
["ID","MTS","AMOUNT","RATE_DAILY","PERIOD"]
[320925409,1711715440779,-439.46829796,0.00042,2]
[320925410,1711715440789,-439.46829796,0.00042,2]
[320925411,1711715440798,-439.46829796,0.00042,2]
[320925412,1711715440807,-439.46829796,0.00042,2]
[320925413,1711715440816,-439.46829796,0.00042,2]
[320925414,1711715440825,-150.0,0.00042033,2]
[320925415,1711715440835,-153.0,0.00042094,7]
[320925416,1711715440844,-1212.37263975,0.000422,2]
[320925417,1711715440853,-508.062287,0.000422,3]
[320925418,1711715440862,-599.50654082,0.00042764,2]
[320925419,1711715440871,-150.0,0.00042826,2]
[320925420,1711715440880,-180.71,0.00043,7]
[320925421,1711715440889,-4715.88612501,0.00043245,11]
[320925422,1711715440898,-272.84,0.00043507,15]
[320925423,1711715440907,-150.0,0.00043619,2]
[320925424,1711715440916,-156.01214547,0.00043744,4]
[320925425,1711715440925,-151.0,0.00043781,2]
[320925426,1711715440935,-1041.92,0.00043845,2]
[320925427,1711715440946,-151.69724403,0.00043848,21]
[320925428,1711715440991,-8305.11920566,0.00043849,2]
[320925429,1711715441001,-15981.35768253,0.00044,2]
[320925430,1711715441010,-150.0,0.00044412,2]
[320925431,1711715441020,-199.61,0.000445,7]
[320925432,1711715441029,-156.89454055,0.00044806,30]
[320925433,1711715441040,-158.50381599,0.00044838,30]
[320925434,1711715441049,-2804.0,0.00045,2]
[320925435,1711715441059,-3215.18783717,0.00045082,20]
[320925436,1711715441073,-158.71889232,0.0004513,30]
[320925437,1711715441083,-150.0,0.00045205,2]
[320925438,1711715441092,-190.83,0.00045205,2]
[320925439,1711715441102,-152.0,0.00045486,3]
[320925440,1711715441111,-152.22649184,0.00045599,30]
[320925441,1711715441120,-599.50654082,0.00045742,2]
[320925442,1711715441130,-180.71,0.000458,7]
[320925443,1711715441140,-3715.09,0.00045816,120]
[320925444,1711715441148,-1041.92,0.00046108,2]
[320925445,1711715441158,-158.40513937,0.00046147,30]
[320925446,1711715441167,-272.84,0.00046247,15]
[320925447,1711715441176,-211.786935,0.0004626,30]
[320925448,1711715441185,-189.72599,0.0004626,30]
[320925449,1711715441196,-150.0,0.00046798,30]
[320925450,1711715441205,-150.0,0.00046798,30]
[320925451,1711715441214,-150.0,0.00046798,30]
[320925452,1711715441223,-151.86884821,0.00046798,30]
[320925453,1711715441232,-150.0,0.00046798,30]
[320925454,1711715441241,-151.725298,0.00046798,30]
[320925455,1711715441250,-150.0,0.00046798,30]
[320925456,1711715441259,-211.786935,0.00046838,30]
[320925457,1711715441269,-158.50381599,0.00046863,30]
[320925458,1711715441277,-4715.88612501,0.00046915,13]
[320925459,1711715441287,-155.43068764,0.00047,4]
[320925460,1711715441296,-348.4943153,0.00047,120]
[320925461,1711715441305,-8305.11920566,0.00047007,2]
[320925462,1711715441314,-157.73362987,0.0004701,30]
[320925463,1711715441323,-155.9315293,0.00047097,30]
[320925464,1711715441332,-180.71,0.000471,7]
[320925465,1711715441342,-2958.0,0.00047111,2]
[320925466,1711715441351,-1951.055,0.00047111,2]
[320925467,1711715441360,-161.242,0.00047111,2]
[320925468,1711715441369,-458.0,0.00047111,2]
[320925469,1711715441378,-960.0,0.00047111,2]
[320925470,1711715441387,-180.992,0.00047111,2]
[320925471,1711715441396,-4596.951,0.00047111,2]
[320925472,1711715441405,-4775.0,0.00047111,2]
[320925473,1711715441414,-42999.0,0.00047111,2]
[320925474,1711715441423,-2465.798,0.00047111,2]
[320925475,1711715441432,-541.987,0.00047111,2]
[320925476,1711715441441,-1216.0,0.00047111,2]
[320925477,1711715441455,-1055.808,0.00047111,2]
[320925478,1711715441467,-1257.516,0.00047111,2]
[320925479,1711715441475,-1022.99,0.00047298,120]
[320925480,1711715441484,-158.71889232,0.00047393,30]
[320925481,1711715441493,-211.786935,0.00047416,30]
[320925482,1711715441502,-161.10517092,0.00047468,30]
[320925483,1711715441511,-151.69724403,0.00047637,35]
[320925484,1711715441520,-199.61,0.000477,7]
[320925485,1711715441529,-1000.0,0.000478,4]
[320925486,1711715441538,-158.40513937,0.00047876,30]
[320925487,1711715441548,-1021.0,0.000479,4]
[320925488,1711715441558,-211.786935,0.00047995,30]
[320925489,1711715441570,-146648.2785406,0.00047998,2]
[320925490,1711715441580,-1000.0,0.00048,4]
[320925491,1711715441590,-153.92,0.00048081,2]
[320925492,1711715441600,-1000.0,0.000481,4]
[320925493,1711715441609,-153.92,0.00048121,2]
[320925494,1711715441619,-153.92,0.00048161,2]
[320925495,1711715441630,-1000.0,0.000482,4]
[320925496,1711715441639,-150.0,0.000482,9]
[320925497,1711715441648,-153.92,0.00048201,2]
[320925498,1711715441658,-152.22649184,0.00048215,30]
[320925499,1711715441667,-511.0,0.0004822,30]
[320925500,1711715441676,-537.0,0.0004822,30]
[320925501,1711715441685,-153.92,0.00048241,2]
[320925502,1711715441696,-153.92,0.00048281,2]
[320925503,1711715441705,-1000.0,0.000483,4]
[320925504,1711715441715,-306.38,0.000483,7]
[320925505,1711715441724,-153.92,0.00048321,2]
[320925506,1711715441733,-1041.92,0.00048372,2]
[320925507,1711715441742,-1000.0,0.000484,4]
[320925508,1711715441751,-180.71,0.000484,7]
[320925509,1711715441760,-158.50381599,0.00048432,30]
[320925510,1711715441770,-3215.18783717,0.00048445,24]
[320925511,1711715441779,-537.0,0.00048494,30]
[320925512,1711715441789,-1000.0,0.000485,4]
[320925513,1711715441798,-501.5629329,0.000485,30]
[320925514,1711715441807,-189.72599,0.00048573,30]
[320925515,1711715441816,-211.786935,0.00048573,30]
[320925516,1711715441825,-154.69988666,0.00048579,30]
[320925517,1711715441834,-151.0,0.00048645,2]
[320925518,1711715441843,-250.49088,0.00048645,2]
[320925519,1711715441852,-153.8652378,0.00048697,30]
[320925520,1711715441862,-150.0,0.000487,9]
[320925521,1711715441872,-1113.0,0.000487,117]
[320925522,1711715441882,-150.72,0.000487,120]
[320925523,1711715441891,-150.72,0.000487,120]
[320925524,1711715441900,-150.72,0.000487,120]
[320925525,1711715441909,-150.72,0.000487,120]
[320925526,1711715441919,-150.72,0.000487,120]
[320925527,1711715441928,-150.72,0.000487,120]
[320925528,1711715441937,-150.72,0.000487,120]
[320925529,1711715441948,-150.72,0.000487,120]
[320925530,1711715441957,-150.72,0.000487,120]
[320925531,1711715441966,-150.72,0.000487,120]
[320925532,1711715441979,-150.72,0.000487,120]
[320925533,1711715441990,-150.72,0.000487,120]
[320925534,1711715442000,-150.72,0.000487,120]
[320925535,1711715442010,-150.72,0.000487,120]
[320925536,1711715442019,-150.72,0.000487,120]
[320925537,1711715442029,-150.72,0.000487,120]
[320925538,1711715442038,-150.72,0.000487,120]
[320925539,1711715442047,-150.72,0.000487,120]
[320925540,1711715442059,-150.72,0.000487,120]
[320925541,1711715442070,-150.72,0.000487,120]
[320925542,1711715442080,-150.72,0.000487,120]
[320925543,1711715442089,-150.72,0.000487,120]
[320925544,1711715442098,-150.72,0.000487,120]
[320925545,1711715442107,-150.72,0.000487,120]
[320925546,1711715442118,-150.72,0.000487,120]
[320925547,1711715442127,-150.72,0.000487,120]
[320925548,1711715442136,-150.72,0.000487,120]
[320925549,1711715442147,-150.72,0.000487,120]
[320925550,1711715442156,-150.72,0.000487,120]
[320925551,1711715442166,-150.72,0.000487,120]
[320925552,1711715442175,-150.72,0.000487,120]
[320925553,1711715442185,-150.72,0.000487,120]
[320925554,1711715442198,-150.72,0.000487,120]
[320925555,1711715442210,-150.72,0.000487,120]
[320925556,1711715442220,-150.72,0.000487,120]
[320925557,1711715442230,-150.72,0.000487,120]
[320925558,1711715442239,-150.72,0.000487,120]
[320925559,1711715442251,-150.72,0.000487,120]
[320925560,1711715442260,-150.72,0.000487,120]
[320925561,1711715442270,-599.50654082,0.00048719,2]
[320925562,1711715442280,-537.0,0.00048767,30]
[320925563,1711715442290,-500.0,0.00048767,10]
[320925564,1711715442301,-244.05,0.00048767,10]
[320925565,1711715442311,-500.0,0.00048767,10]
[320925566,1711715442322,-500.0,0.00048767,10]
[320925567,1711715442331,-500.0,0.00048767,10]
[320925568,1711715442340,-500.0,0.00048767,10]
[320925569,1711715442349,-500.0,0.00048767,10]
[320925570,1711715442359,-500.0,0.00048767,10]
[320925571,1711715442368,-500.0,0.00048767,10]
[320925572,1711715442378,-464.59327398,0.00048767,10]
[320925573,1711715442387,-19362.15569601,0.00048775,2]
[320925574,1711715442396,-5300.0,0.000488,120]
[320925575,1711715442406,-68522.12262817,0.0004888,2]
[320925576,1711715442415,-272.84,0.00048986,15]
[320925577,1711715442424,-163.20278265,0.00048998,30]
[320925578,1711715442433,-20752.06983302,0.00049,30]
[320925579,1711715442442,-539.0,0.00049041,30]
[320925580,1711715442458,-164.7886302,0.00049092,3]
[320925581,1711715442467,-150.0,0.000492,9]
[320925582,1711715442476,-1119.63382916,0.00049205,2]
[320925583,1711715442485,-1119.63382916,0.00049213,2]
[320925584,1711715442494,-204.25816562,0.00049219,2]
[320925585,1711715442503,-204.25816562,0.00049233,2]
[320925586,1711715442511,-204.25816562,0.00049238,2]
[320925587,1711715442521,-1119.63382916,0.00049239,2]
[320925588,1711715442530,-1022.53942599,0.00049255,2]
[320925589,1711715442540,-1022.53942599,0.00049259,2]
[320925590,1711715442549,-1022.53942599,0.00049271,2]
[320925591,1711715442559,-204.25816562,0.00049274,2]
[320925592,1711715442568,-1119.63382916,0.00049281,2]
[320925593,1711715442577,-1022.53942599,0.00049295,2]
[320925594,1711715442586,-535.34496696,0.00049315,120]
[320925595,1711715442595,-500.0,0.00049315,120]
[320925596,1711715442604,-500.0,0.00049315,120]
[320925597,1711715442613,-500.0,0.00049315,120]
[320925598,1711715442622,-593.05764614,0.00049315,120]
[320925600,1711715442631,-170.96417965,0.00049315,120]
[320925601,1711715442640,-500.0,0.00049315,120]
[320925602,1711715442649,-500.0,0.00049315,2]
[320925603,1711715442659,-392.21044371,0.00049315,120]
[320925604,1711715442668,-500.0,0.00049315,120]
[320925605,1711715442677,-500.0,0.00049315,120]
[320925606,1711715442686,-500.0,0.00049315,120]
[320925607,1711715442697,-500.0,0.00049315,120]
[320925608,1711715442707,-500.0,0.00049315,120]
[320925609,1711715442717,-500.0,0.00049315,120]
[320925610,1711715442726,-500.0,0.00049315,120]
[320925611,1711715442735,-500.0,0.00049315,120]
[320925612,1711715442745,-500.0,0.00049315,120]
[320925613,1711715442754,-558.25429918,0.00049315,120]
[320925614,1711715442763,-500.0,0.00049315,120]
[320925615,1711715442772,-500.0,0.00049315,120]
[320925616,1711715442781,-641.43700889,0.00049315,120]
[320925617,1711715442791,-500.0,0.00049315,120]
[320925618,1711715442801,-500.0,0.00049315,120]
[320925619,1711715442810,-285.17471446,0.00049315,120]
[320925620,1711715442819,-182.02677806,0.00049315,120]
[320925621,1711715442828,-1672.16,0.00049315,120]
[320925622,1711715442838,-306.91101711,0.00049315,120]
[320925623,1711715442846,-500.0,0.00049315,120]
[320925624,1711715442855,-740.46,0.00049315,120]
[320925625,1711715442864,-294.16944964,0.00049315,120]
[320925626,1711715442874,-500.0,0.00049315,120]
[320925627,1711715442884,-500.0,0.00049315,120]
[320925628,1711715442893,-500.0,0.00049315,120]
[320925629,1711715442902,-500.0,0.00049315,120]
[320925630,1711715442912,-500.0,0.00049315,120]
[320925631,1711715442921,-500.0,0.00049315,120]
[320925632,1711715442930,-414.4652125,0.00049315,120]
[320925633,1711715442940,-500.0,0.00049315,120]
[320925634,1711715442951,-500.0,0.00049315,120]
[320925635,1711715442960,-186.89821221,0.00049315,120]
[320925636,1711715442970,-500.0,0.00049315,120]
[320925637,1711715442980,-522.88,0.00049315,120]
[320925638,1711715442990,-500.0,0.00049315,120]
[320925639,1711715443001,-500.0,0.00049315,120]
[320925640,1711715443010,-500.0,0.00049315,120]
[320925641,1711715443019,-500.0,0.00049315,120]
[320925642,1711715443029,-500.0,0.00049315,120]
[320925643,1711715443039,-500.0,0.00049315,120]
[320925644,1711715443049,-397.63382538,0.00049315,120]
[320925645,1711715443058,-500.0,0.00049315,120]
[320925646,1711715443068,-500.0,0.00049315,120]
[320925647,1711715443078,-500.0,0.00049315,120]
[320925648,1711715443087,-500.0,0.00049315,120]
[320925649,1711715443096,-500.0,0.00049315,120]
[320925650,1711715443105,-247.96776919,0.00049315,120]
[320925651,1711715443114,-500.0,0.00049315,120]
[320925652,1711715443123,-500.0,0.00049315,120]
[320925653,1711715443132,-500.0,0.00049315,120]
[320925654,1711715443141,-500.0,0.00049315,120]
[320925655,1711715443150,-500.0,0.00049315,120]
[320925656,1711715443160,-500.0,0.00049315,120]
[320925657,1711715443169,-500.0,0.00049315,120]
[320925658,1711715443178,-500.0,0.00049315,120]
[320925659,1711715443187,-500.0,0.00049315,120]
[320925660,1711715443196,-500.0,0.00049315,120]
[320925661,1711715443206,-500.0,0.00049315,120]
[320925662,1711715443215,-429.59446305,0.00049315,120]
[320925663,1711715443224,-500.0,0.00049315,120]
[320925664,1711715443234,-500.0,0.00049315,30]
[320925666,1711715443243,-154.73485144,0.00049315,120]
[320925668,1711715443252,-199.21379009,0.00049315,120]
[320925670,1711715443261,-500.0,0.00049315,120]
[320925672,1711715443271,-500.0,0.00049315,120]
[320925674,1711715443280,-624.59979124,0.00049315,120]
[320925676,1711715443289,-191.94201744,0.00049315,120]
[320925677,1711715443298,-500.0,0.00049315,120]
[320925679,1711715443307,-500.0,0.00049315,120]
[320925681,1711715443316,-500.0,0.00049315,120]
[320925683,1711715443326,-297.21391957,0.00049315,120]
[320925685,1711715443335,-500.0,0.00049315,120]
[320925687,1711715443344,-500.0,0.00049315,120]
[320925689,1711715443353,-500.0,0.00049315,120]
[320925691,1711715443363,-500.0,0.00049315,120]
[320925693,1711715443372,-500.0,0.00049315,120]
[320925695,1711715443380,-150.0,0.00049315,120]
[320925697,1711715443390,-500.0,0.00049315,120]
[320925699,1711715443399,-500.0,0.00049315,120]
[320925701,1711715443408,-500.0,0.00049315,120]
[320925703,1711715443417,-500.0,0.00049315,120]
[320925705,1711715443426,-500.0,0.00049315,120]
[320925708,1711715443439,-500.0,0.00049315,120]
[320925711,1711715443450,-500.0,0.00049315,120]
[320925713,1711715443459,-500.0,0.00049315,120]
[320925716,1711715443468,-500.0,0.00049315,120]
[320925719,1711715443477,-500.0,0.00049315,120]
[320925722,1711715443487,-500.0,0.00049315,120]
[320925725,1711715443496,-500.0,0.00049315,120]
[320925728,1711715443505,-500.0,0.00049315,120]
[320925731,1711715443514,-482.35272346,0.00049315,120]
[320925733,1711715443523,-534.84684711,0.00049315,4]
[320925735,1711715443532,-500.0,0.00049315,120]
[320925737,1711715443542,-500.0,0.00049315,120]
[320925739,1711715443551,-500.0,0.00049315,120]
[320925741,1711715443560,-525.02,0.00049315,120]
[320925743,1711715443570,-601.77833044,0.00049315,120]
[320925745,1711715443578,-500.0,0.00049315,120]
[320925747,1711715443588,-1085.74,0.00049315,120]
[320925749,1711715443598,-500.0,0.00049315,120]
[320925751,1711715443607,-930.68,0.00049315,120]
[320925753,1711715443616,-500.0,0.00049315,120]
[320925755,1711715443626,-500.0,0.00049315,120]
[320925757,1711715443636,-500.0,0.00049315,120]
[320925759,1711715443646,-500.0,0.00049315,120]
[320925762,1711715443656,-1247.64,0.00049315,120]
[320925763,1711715443665,-500.0,0.00049315,120]
[320925766,1711715443674,-500.0,0.00049315,120]
[320925767,1711715443684,-637.35,0.00049315,120]
[320925769,1711715443694,-500.0,0.00049315,120]
[320925771,1711715443704,-500.0,0.00049315,120]
[320925772,1711715443717,-500.0,0.00049315,120]
[320925774,1711715443727,-500.0,0.00049315,120]
[320925775,1711715443736,-2186.22,0.00049315,120]
[320925777,1711715443746,-1025.85,0.00049315,120]
[320925778,1711715443756,-1080.64,0.00049315,120]
[320925779,1711715443765,-2210.32,0.00049315,120]
[320925780,1711715443775,-500.0,0.00049315,120]
[320925781,1711715443784,-813.7,0.00049315,120]
[320925782,1711715443794,-500.0,0.00049315,120]
[320925783,1711715443803,-500.0,0.00049315,120]
[320925784,1711715443814,-500.0,0.00049315,120]
[320925785,1711715443830,-644.49,0.00049315,120]
[320925786,1711715443839,-5519.83,0.00049315,120]
[320925787,1711715443848,-500.0,0.00049315,120]
[320925788,1711715443858,-500.0,0.00049315,120]
[320925789,1711715443868,-500.0,0.00049315,120]
[320925790,1711715443877,-522.99,0.00049315,120]
[320925791,1711715443886,-500.0,0.00049315,120]
[320925792,1711715443895,-500.0,0.00049315,120]
[320925793,1711715443905,-500.0,0.00049315,120]
[320925794,1711715443915,-500.0,0.00049315,120]
[320925795,1711715443925,-500.0,0.00049315,120]
[320925796,1711715443934,-1098.18,0.00049315,120]
[320925797,1711715443945,-500.0,0.00049315,60]
[320925798,1711715443956,-744.47,0.00049315,120]
[320925799,1711715443965,-532.08,0.00049315,120]
[320925800,1711715443977,-500.0,0.00049315,120]
[320925801,1711715443990,-815.77,0.00049315,120]
[320925802,1711715444002,-1398.69,0.00049315,120]
[320925803,1711715444012,-500.0,0.00049315,120]
[320925804,1711715444023,-500.0,0.00049315,120]
[320925805,1711715444032,-500.0,0.00049315,120]
[320925806,1711715444043,-545.5815847,0.00049315,120]
[320925807,1711715444053,-500.0,0.00049315,120]
[320925808,1711715444064,-1134.32,0.00049315,120]
[320925809,1711715444076,-2306.29,0.00049315,120]
[320925810,1711715444086,-500.0,0.00049315,120]
[320925811,1711715444096,-500.0,0.00049315,120]
[320925812,1711715444106,-500.0,0.00049315,120]
[320925813,1711715444115,-500.0,0.00049315,120]
[320925814,1711715444125,-500.0,0.00049315,120]
[320925815,1711715444135,-500.0,0.00049315,120]
[320925816,1711715444147,-500.0,0.00049315,120]
[320925817,1711715444159,-906.41,0.00049315,120]
[320925818,1711715444169,-500.0,0.00049315,120]
[320925819,1711715444179,-500.0,0.00049315,120]
[320925820,1711715444189,-2037.34,0.00049315,120]
[320925821,1711715444200,-500.0,0.00049315,120]
[320925822,1711715444209,-897.77,0.00049315,120]
[320925823,1711715444218,-500.0,0.00049315,120]
[320925824,1711715444228,-500.0,0.00049315,120]
[320925825,1711715444238,-500.0,0.00049315,120]
[320925826,1711715444247,-547.52636207,0.00049315,120]
[320925827,1711715444257,-500.0,0.00049315,120]
[320925828,1711715444266,-500.0,0.00049315,120]
[320925829,1711715444277,-500.0,0.00049315,120]
[320925830,1711715444286,-831.59,0.00049315,120]
[320925831,1711715444297,-500.0,0.00049315,120]
[320925832,1711715444306,-500.0,0.00049315,120]
[320925833,1711715444317,-837.52,0.00049315,120]
[320925834,1711715444326,-10000.0,0.00049315,2]
[320925835,1711715444339,-500.0,0.00049315,120]
[320925836,1711715444349,-1445.92,0.00049315,120]
[320925837,1711715444359,-568.5763617,0.00049315,120]
[320925838,1711715444370,-865.91,0.00049315,120]
[320925839,1711715444380,-500.0,0.00049315,120]
[320925840,1711715444389,-500.0,0.00049315,120]
[320925841,1711715444399,-500.0,0.00049315,120]
[320925842,1711715444408,-500.0,0.00049315,120]
[320925843,1711715444418,-4401.0,0.00049315,120]
[320925844,1711715444428,-618.06,0.00049315,120]
[320925845,1711715444439,-500.0,0.00049315,120]
[320925846,1711715444450,-11946.25,0.00049315,120]
[320925847,1711715444460,-553.68,0.00049315,120]
[320925848,1711715444470,-500.0,0.00049315,120]
[320925849,1711715444479,-500.0,0.00049315,120]
[320925850,1711715444491,-536.07,0.00049315,120]
[320925851,1711715444502,-749.63,0.00049315,120]
[320925852,1711715444512,-970.01,0.00049315,120]
[320925853,1711715444522,-500.0,0.00049315,120]
[320925854,1711715444534,-500.0,0.00049315,120]
[320925855,1711715444553,-989.16,0.00049315,120]
[320925856,1711715444564,-500.0,0.00049315,120]
[320925857,1711715444574,-500.0,0.00049315,120]
[320925858,1711715444583,-1295.72,0.00049315,120]
[320925859,1711715444593,-593.19,0.00049315,120]
[320925860,1711715444603,-500.0,0.00049315,120]
[320925861,1711715444613,-1210.99,0.00049315,120]
[320925862,1711715444623,-501.4,0.00049315,120]
[320925863,1711715444633,-1766.07,0.00049315,120]
[320925864,1711715444643,-500.0,0.00049315,120]
[320925865,1711715444653,-803.36,0.00049315,120]
[320925866,1711715444663,-500.0,0.00049315,120]
[320925867,1711715444674,-500.0,0.00049315,120]
[320925868,1711715444684,-500.0,0.00049315,120]
[320925869,1711715444694,-500.0,0.00049315,120]
[320925870,1711715444705,-500.0,0.00049315,120]
[320925871,1711715444715,-607.41,0.00049315,120]
[320925872,1711715444725,-500.0,0.00049315,120]
[320925873,1711715444735,-500.0,0.00049315,120]
[320925874,1711715444745,-1040.75,0.00049315,120]
[320925875,1711715444755,-500.0,0.00049315,120]
[320925876,1711715444765,-500.0,0.00049315,120]
[320925877,1711715444775,-473.62265823,0.00049315,120]
[320925878,1711715444787,-500.0,0.00049315,120]
[320925879,1711715444798,-500.0,0.00049315,120]
[320925880,1711715444810,-591.93,0.00049315,120]
[320925881,1711715444820,-500.0,0.00049315,120]
[320925882,1711715444830,-500.0,0.00049315,120]
[320925883,1711715444841,-500.0,0.00049315,120]
[320925884,1711715444851,-500.0,0.00049315,120]
[320925885,1711715444861,-974.57,0.00049315,120]
[320925886,1711715444871,-533.51,0.00049315,120]
[320925887,1711715444881,-588.44,0.00049315,120]
[320925888,1711715444891,-588.58,0.00049315,120]
[320925889,1711715444902,-937.75,0.00049315,120]
[320925890,1711715444912,-580.52,0.00049315,120]
[320925891,1711715444922,-7631.65,0.00049315,120]
[320925892,1711715444932,-500.0,0.00049315,120]
[320925893,1711715444942,-500.0,0.00049315,120]
[320925894,1711715444954,-547.15,0.00049315,120]
[320925895,1711715444965,-849.68,0.00049315,120]
[320925896,1711715444975,-1598.48,0.00049315,120]
[320925897,1711715444987,-500.0,0.00049315,120]
[320925898,1711715444998,-530.07,0.00049315,120]
[320925899,1711715445008,-500.0,0.00049315,120]
[320925900,1711715445019,-544.49,0.00049315,120]
[320925901,1711715445029,-500.0,0.00049315,120]
[320925902,1711715445039,-500.0,0.00049315,120]
[320925903,1711715445048,-500.0,0.00049315,120]
[320925904,1711715445059,-1844.98,0.00049315,120]
[320925905,1711715445070,-521.32,0.00049315,120]
[320925906,1711715445080,-500.0,0.00049315,120]
[320925907,1711715445090,-500.0,0.00049315,120]
[320925908,1711715445100,-500.0,0.00049315,120]
[320925909,1711715445110,-500.0,0.00049315,120]
[320925910,1711715445120,-500.0,0.00049315,120]
[320925911,1711715445130,-600.49,0.00049315,120]
[320925912,1711715445140,-500.0,0.00049315,120]
[320925913,1711715445150,-500.0,0.00049315,30]
[320925914,1711715445160,-725.02,0.00049315,120]
[320925915,1711715445170,-997.33,0.00049315,120]
[320925916,1711715445180,-500.0,0.00049315,120]
[320925917,1711715445190,-295.91434152,0.00049315,120]
[320925918,1711715445201,-500.0,0.00049315,120]
[320925919,1711715445210,-500.0,0.00049315,120]
[320925920,1711715445221,-532.33,0.00049315,120]
[320925921,1711715445230,-2494.86,0.00049315,120]
[320925922,1711715445244,-500.0,0.00049315,120]
[320925923,1711715445255,-635.78,0.00049315,120]
[320925924,1711715445265,-500.0,0.00049315,120]
[320925925,1711715445275,-500.0,0.00049315,120]
[320925926,1711715445285,-854.79,0.00049315,21]
[320925927,1711715445295,-986.55,0.00049315,120]
[320925928,1711715445305,-500.0,0.00049315,120]
[320925929,1711715445314,-2139.57,0.00049315,120]
[320925930,1711715445325,-500.0,0.00049315,120]
[320925931,1711715445334,-637.24,0.00049315,120]
[320925932,1711715445345,-500.0,0.00049315,120]
[320925933,1711715445355,-500.0,0.00049315,120]
[320925934,1711715445365,-922.26,0.00049315,120]
[320925935,1711715445375,-947.88,0.00049315,120]
[320925936,1711715445385,-500.0,0.00049315,120]
[320925937,1711715445395,-500.0,0.00049315,120]
[320925938,1711715445405,-500.0,0.00049315,120]
[320925939,1711715445415,-809.13,0.00049315,120]
[320925940,1711715445425,-238.91230638,0.00049315,120]
[320925941,1711715445435,-500.0,0.00049315,120]
[320925942,1711715445445,-500.0,0.00049315,120]
[320925943,1711715445457,-555.49,0.00049315,120]
[320925944,1711715445467,-500.0,0.00049315,120]
[320925945,1711715445477,-1496.84,0.00049315,120]
[320925947,1711715445487,-1713.03,0.00049315,120]
[320925949,1711715445497,-714.32,0.00049315,120]
[320925951,1711715445507,-500.0,0.00049315,120]
[320925952,1711715445517,-645.39660328,0.00049315,120]
[320925953,1711715445527,-652.78,0.00049315,120]
[320925954,1711715445536,-525.31,0.00049315,120]
[320925955,1711715445546,-500.0,0.00049315,120]
[320925956,1711715445557,-599.43,0.00049315,120]
[320925957,1711715445567,-500.0,0.00049315,120]
[320925958,1711715445577,-500.0,0.00049315,120]
[320925959,1711715445589,-500.0,0.00049315,120]
[320925960,1711715445599,-500.0,0.00049315,120]
[320925961,1711715445608,-513.23,0.00049315,120]
[320925962,1711715445619,-534.39843446,0.00049315,120]
[320925963,1711715445629,-500.0,0.00049315,120]
[320925964,1711715445639,-500.0,0.00049315,120]
[320925965,1711715445648,-1171.13,0.00049315,120]
[320925966,1711715445658,-500.0,0.00049315,120]
[320925967,1711715445668,-500.0,0.00049315,120]
[320925968,1711715445678,-500.0,0.00049315,120]
[320925969,1711715445689,-500.0,0.00049315,120]
[320925970,1711715445700,-1412.38,0.00049315,60]
[320925971,1711715445711,-500.0,0.00049315,120]